{"text_format":"3","workbook":"xlsx","n_sheets":2,"sheets":["Bryllupsbudsjett","Budsjettdetaljer"],"not_rendered":{"charts":1,"images":1,"defined_names":2},"read":"whole","date_system":"1900"}

{"sheet":"Bryllupsbudsjett","index":0,"n_rows":16,"n_cols":16,"rows_kept":16,"merged":[[1,1,1,5]]}
[{"$nulls":6}," "]
[null,"LINDA + EGIL\nGIFTER SEG"]
[{"$nulls":7}," "]
[]
[null,"KATEGORI","ESTIMERTE KOSTNADER","FAKTISKE KOSTNADER","AVVIK","BUDSJETT %",{"$nulls":3},"Usortert","Estimerte kostnader","Faktiske kostnader","Anslått kostnad – rangeringsverdi","Rangering","#","Sortert"]
[null,{"$f":"P6","v":"Mottagelse"},{"$f":"VLOOKUP(TBL_Oppsummering[[#This Row],[KATEGORI]],TBL_Rangeringsdata,2,FALSE)","v":{"v":14500,"d":"kr 14,500"}},{"$f":"IF(VLOOKUP(TBL_Oppsummering[[#This Row],[KATEGORI]],TBL_Rangeringsdata,3,FALSE)=0,\"\",VLOOKUP(TBL_Oppsummering[[#This Row],[KATEGORI]],TBL_Rangeringsdata,3,FALSE))","v":{"v":12800,"d":"kr 12,800"}},{"$f":"IF(OR(TBL_Oppsummering[[#This Row],[ESTIMERTE KOSTNADER]]=\"\",TBL_Oppsummering[[#This Row],[FAKTISKE KOSTNADER]]=\"\"),\"\",TBL_Oppsummering[[#This Row],[ESTIMERTE KOSTNADER]]-TBL_Oppsummering[[#This Row],[FAKTISKE KOSTNADER]])","v":{"v":1700,"d":"kr 1,700"}},{"$f":"TBL_Oppsummering[[#This Row],[ESTIMERTE KOSTNADER]]/SUM(TBL_Oppsummering[ESTIMERTE KOSTNADER])","v":{"v":0.48739495798319327,"d":"48.7 %"}},{"$nulls":3},"Mottagelse",{"$f":"TBL_Mottagelse[[#Totals],[BEREGNET]]","v":14500},{"$f":"TBL_Mottagelse[[#Totals],[FAKTISK]]","v":12800},{"$f":"K6-O6/100","v":14499.99},{"$f":"_xlfn.RANK.AVG(M6,$M$6:$M$15)","v":1},1,{"$f":"INDEX(TBL_Rangeringsdata,MATCH(O6,$N$6:$N$15,0),1)","v":"Mottagelse"}]
[null,{"$f":"P7","v":"Antrekk"},{"$f":"VLOOKUP(TBL_Oppsummering[[#This Row],[KATEGORI]],TBL_Rangeringsdata,2,FALSE)","v":{"v":4000,"d":"kr 4,000"}},{"$f":"IF(VLOOKUP(TBL_Oppsummering[[#This Row],[KATEGORI]],TBL_Rangeringsdata,3,FALSE)=0,\"\",VLOOKUP(TBL_Oppsummering[[#This Row],[KATEGORI]],TBL_Rangeringsdata,3,FALSE))","v":{"v":2900,"d":"kr 2,900"}},{"$f":"IF(OR(TBL_Oppsummering[[#This Row],[ESTIMERTE KOSTNADER]]=\"\",TBL_Oppsummering[[#This Row],[FAKTISKE KOSTNADER]]=\"\"),\"\",TBL_Oppsummering[[#This Row],[ESTIMERTE KOSTNADER]]-TBL_Oppsummering[[#This Row],[FAKTISKE KOSTNADER]])","v":{"v":1100,"d":"kr 1,100"}},{"$f":"TBL_Oppsummering[[#This Row],[ESTIMERTE KOSTNADER]]/SUM(TBL_Oppsummering[ESTIMERTE KOSTNADER])","v":{"v":0.13445378151260504,"d":"13.4 %"}},{"$nulls":3},"Antrekk",{"$f":"TBL_Påkledning[[#Totals],[BEREGNET]]","v":4000},{"$f":"TBL_Påkledning[[#Totals],[FAKTISK]]","v":2900},{"$f":"K7-O7/100","v":3999.98},2,2,"Antrekk"]
[null,"Blomster og dekorasjoner",{"$f":"VLOOKUP(TBL_Oppsummering[[#This Row],[KATEGORI]],TBL_Rangeringsdata,2,FALSE)","v":{"v":3000,"d":"kr 3,000"}},{"$f":"IF(VLOOKUP(TBL_Oppsummering[[#This Row],[KATEGORI]],TBL_Rangeringsdata,3,FALSE)=0,\"\",VLOOKUP(TBL_Oppsummering[[#This Row],[KATEGORI]],TBL_Rangeringsdata,3,FALSE))","v":""},{"$f":"IF(OR(TBL_Oppsummering[[#This Row],[ESTIMERTE KOSTNADER]]=\"\",TBL_Oppsummering[[#This Row],[FAKTISKE KOSTNADER]]=\"\"),\"\",TBL_Oppsummering[[#This Row],[ESTIMERTE KOSTNADER]]-TBL_Oppsummering[[#This Row],[FAKTISKE KOSTNADER]])","v":""},{"$f":"TBL_Oppsummering[[#This Row],[ESTIMERTE KOSTNADER]]/SUM(TBL_Oppsummering[ESTIMERTE KOSTNADER])","v":{"v":0.10084033613445378,"d":"10.1 %"}},{"$nulls":3},"Blomster og dekorasjoner",{"$f":"TBL_BlomsterOgDekorasjoner[[#Totals],[BEREGNET]]","v":3000},{"$f":"TBL_BlomsterOgDekorasjoner[[#Totals],[FAKTISK]]","v":0},2999.97,3,3,"Blomster og dekorasjoner"]
[null,"Fotografier og video",{"$f":"VLOOKUP(TBL_Oppsummering[[#This Row],[KATEGORI]],TBL_Rangeringsdata,2,FALSE)","v":{"v":2500,"d":"kr 2,500"}},{"$f":"IF(VLOOKUP(TBL_Oppsummering[[#This Row],[KATEGORI]],TBL_Rangeringsdata,3,FALSE)=0,\"\",VLOOKUP(TBL_Oppsummering[[#This Row],[KATEGORI]],TBL_Rangeringsdata,3,FALSE))","v":""},{"$f":"IF(OR(TBL_Oppsummering[[#This Row],[ESTIMERTE KOSTNADER]]=\"\",TBL_Oppsummering[[#This Row],[FAKTISKE KOSTNADER]]=\"\"),\"\",TBL_Oppsummering[[#This Row],[ESTIMERTE KOSTNADER]]-TBL_Oppsummering[[#This Row],[FAKTISKE KOSTNADER]])","v":""},{"$f":"TBL_Oppsummering[[#This Row],[ESTIMERTE KOSTNADER]]/SUM(TBL_Oppsummering[ESTIMERTE KOSTNADER])","v":{"v":0.08403361344537816,"d":"8.4 %"}},{"$nulls":3},"Musikk",{"$f":"TBL_Musikk[[#Totals],[BEREGNET]]","v":1800},{"$f":"TBL_Musikk[[#Totals],[FAKTISK]]","v":0},1799.96,5,4,"Fotografier og video"]
[null,"Musikk",{"$f":"VLOOKUP(TBL_Oppsummering[[#This Row],[KATEGORI]],TBL_Rangeringsdata,2,FALSE)","v":{"v":1800,"d":"kr 1,800"}},{"$f":"IF(VLOOKUP(TBL_Oppsummering[[#This Row],[KATEGORI]],TBL_Rangeringsdata,3,FALSE)=0,\"\",VLOOKUP(TBL_Oppsummering[[#This Row],[KATEGORI]],TBL_Rangeringsdata,3,FALSE))","v":""},{"$f":"IF(OR(TBL_Oppsummering[[#This Row],[ESTIMERTE KOSTNADER]]=\"\",TBL_Oppsummering[[#This Row],[FAKTISKE KOSTNADER]]=\"\"),\"\",TBL_Oppsummering[[#This Row],[ESTIMERTE KOSTNADER]]-TBL_Oppsummering[[#This Row],[FAKTISKE KOSTNADER]])","v":""},{"$f":"TBL_Oppsummering[[#This Row],[ESTIMERTE KOSTNADER]]/SUM(TBL_Oppsummering[ESTIMERTE KOSTNADER])","v":{"v":0.06050420168067227,"d":"6.1 %"}},{"$nulls":3},"Fotografier og video",{"$f":"TBL_FotografierOgVideo[[#Totals],[BEREGNET]]","v":2500},{"$f":"TBL_FotografierOgVideo[[#Totals],[FAKTISK]]","v":0},2499.95,4,5,"Musikk"]
[null,"Gaver til gjester og gaver",{"$f":"VLOOKUP(TBL_Oppsummering[[#This Row],[KATEGORI]],TBL_Rangeringsdata,2,FALSE)","v":{"v":1100,"d":"kr 1,100"}},{"$f":"IF(VLOOKUP(TBL_Oppsummering[[#This Row],[KATEGORI]],TBL_Rangeringsdata,3,FALSE)=0,\"\",VLOOKUP(TBL_Oppsummering[[#This Row],[KATEGORI]],TBL_Rangeringsdata,3,FALSE))","v":""},{"$f":"IF(OR(TBL_Oppsummering[[#This Row],[ESTIMERTE KOSTNADER]]=\"\",TBL_Oppsummering[[#This Row],[FAKTISKE KOSTNADER]]=\"\"),\"\",TBL_Oppsummering[[#This Row],[ESTIMERTE KOSTNADER]]-TBL_Oppsummering[[#This Row],[FAKTISKE KOSTNADER]])","v":""},{"$f":"TBL_Oppsummering[[#This Row],[ESTIMERTE KOSTNADER]]/SUM(TBL_Oppsummering[ESTIMERTE KOSTNADER])","v":{"v":0.03697478991596639,"d":"3.7 %"}},{"$nulls":3},"Gaver til gjester og gaver",{"$f":"TBL_Gaver[[#Totals],[BEREGNET]]","v":1100},{"$f":"TBL_Gaver[[#Totals],[FAKTISK]]","v":0},1099.94,6,6,"Gaver til gjester og gaver"]
[null,{"$f":"P12","v":"Gifteringer"},{"$f":"VLOOKUP(TBL_Oppsummering[[#This Row],[KATEGORI]],TBL_Rangeringsdata,2,FALSE)","v":{"v":1100,"d":"kr 1,100"}},{"$f":"IF(VLOOKUP(TBL_Oppsummering[[#This Row],[KATEGORI]],TBL_Rangeringsdata,3,FALSE)=0,\"\",VLOOKUP(TBL_Oppsummering[[#This Row],[KATEGORI]],TBL_Rangeringsdata,3,FALSE))","v":""},{"$f":"IF(OR(TBL_Oppsummering[[#This Row],[ESTIMERTE KOSTNADER]]=\"\",TBL_Oppsummering[[#This Row],[FAKTISKE KOSTNADER]]=\"\"),\"\",TBL_Oppsummering[[#This Row],[ESTIMERTE KOSTNADER]]-TBL_Oppsummering[[#This Row],[FAKTISKE KOSTNADER]])","v":""},{"$f":"TBL_Oppsummering[[#This Row],[ESTIMERTE KOSTNADER]]/SUM(TBL_Oppsummering[ESTIMERTE KOSTNADER])","v":{"v":0.03697478991596639,"d":"3.7 %"}},{"$nulls":3},"Vielse",{"$f":"TBL_Seremoni[[#Totals],[BEREGNET]]","v":800},{"$f":"TBL_Seremoni[[#Totals],[FAKTISK]]","v":0},799.93,8,7,"Gifteringer"]
[null,"Vielse",{"$f":"VLOOKUP(TBL_Oppsummering[[#This Row],[KATEGORI]],TBL_Rangeringsdata,2,FALSE)","v":{"v":800,"d":"kr 800"}},{"$f":"IF(VLOOKUP(TBL_Oppsummering[[#This Row],[KATEGORI]],TBL_Rangeringsdata,3,FALSE)=0,\"\",VLOOKUP(TBL_Oppsummering[[#This Row],[KATEGORI]],TBL_Rangeringsdata,3,FALSE))","v":""},{"$f":"IF(OR(TBL_Oppsummering[[#This Row],[ESTIMERTE KOSTNADER]]=\"\",TBL_Oppsummering[[#This Row],[FAKTISKE KOSTNADER]]=\"\"),\"\",TBL_Oppsummering[[#This Row],[ESTIMERTE KOSTNADER]]-TBL_Oppsummering[[#This Row],[FAKTISKE KOSTNADER]])","v":""},{"$f":"TBL_Oppsummering[[#This Row],[ESTIMERTE KOSTNADER]]/SUM(TBL_Oppsummering[ESTIMERTE KOSTNADER])","v":{"v":0.02689075630252101,"d":"2.7 %"}},{"$nulls":3},"Skrivepapir",{"$f":"TBL_Invitasjoner[[#Totals],[BEREGNET]]","v":500},{"$f":"TBL_Invitasjoner[[#Totals],[FAKTISK]]","v":0},499.92,9,8,"Vielse"]
[null,"Skrivepapir",{"$f":"VLOOKUP(TBL_Oppsummering[[#This Row],[KATEGORI]],TBL_Rangeringsdata,2,FALSE)","v":{"v":500,"d":"kr 500"}},{"$f":"IF(VLOOKUP(TBL_Oppsummering[[#This Row],[KATEGORI]],TBL_Rangeringsdata,3,FALSE)=0,\"\",VLOOKUP(TBL_Oppsummering[[#This Row],[KATEGORI]],TBL_Rangeringsdata,3,FALSE))","v":""},{"$f":"IF(OR(TBL_Oppsummering[[#This Row],[ESTIMERTE KOSTNADER]]=\"\",TBL_Oppsummering[[#This Row],[FAKTISKE KOSTNADER]]=\"\"),\"\",TBL_Oppsummering[[#This Row],[ESTIMERTE KOSTNADER]]-TBL_Oppsummering[[#This Row],[FAKTISKE KOSTNADER]])","v":""},{"$f":"TBL_Oppsummering[[#This Row],[ESTIMERTE KOSTNADER]]/SUM(TBL_Oppsummering[ESTIMERTE KOSTNADER])","v":{"v":0.01680672268907563,"d":"1.7 %"}},{"$nulls":3},"Gifteringer",{"$f":"TBL_Gifteringer[[#Totals],[BEREGNET]]","v":1100},{"$f":"TBL_Gifteringer[[#Totals],[FAKTISK]]","v":0},1099.91,7,9,"Skrivepapir"]
[null,"Transport",{"$f":"VLOOKUP(TBL_Oppsummering[[#This Row],[KATEGORI]],TBL_Rangeringsdata,2,FALSE)","v":{"v":450,"d":"kr 450"}},{"$f":"IF(VLOOKUP(TBL_Oppsummering[[#This Row],[KATEGORI]],TBL_Rangeringsdata,3,FALSE)=0,\"\",VLOOKUP(TBL_Oppsummering[[#This Row],[KATEGORI]],TBL_Rangeringsdata,3,FALSE))","v":""},{"$f":"IF(OR(TBL_Oppsummering[[#This Row],[ESTIMERTE KOSTNADER]]=\"\",TBL_Oppsummering[[#This Row],[FAKTISKE KOSTNADER]]=\"\"),\"\",TBL_Oppsummering[[#This Row],[ESTIMERTE KOSTNADER]]-TBL_Oppsummering[[#This Row],[FAKTISKE KOSTNADER]])","v":""},{"$f":"TBL_Oppsummering[[#This Row],[ESTIMERTE KOSTNADER]]/SUM(TBL_Oppsummering[ESTIMERTE KOSTNADER])","v":{"v":0.015126050420168067,"d":"1.5 %"}},{"$nulls":3},"Transport",{"$f":"TBL_Transport[[#Totals],[BEREGNET]]","v":450},{"$f":"TBL_Transport[[#Totals],[FAKTISK]]","v":0},449.9,10,10,"Transport"]
[null,"Totalt",{"$f":"SUBTOTAL(109,TBL_Oppsummering[ESTIMERTE KOSTNADER])","v":{"v":29750,"d":"kr 29,750"}},{"$f":"SUBTOTAL(109,TBL_Oppsummering[FAKTISKE KOSTNADER])","v":{"v":15700,"d":"kr 15,700"}},{"$f":"TBL_Oppsummering[[#Totals],[ESTIMERTE KOSTNADER]]-TBL_Oppsummering[[#Totals],[FAKTISKE KOSTNADER]]","v":{"v":14050,"d":"kr 14,050"}},{"$f":"SUBTOTAL(109,TBL_Oppsummering[BUDSJETT %])","v":{"v":1,"d":"100%"}}]

{"sheet":"Budsjettdetaljer","index":1,"n_rows":91,"n_cols":6,"rows_kept":91}
[{"$nulls":5}," "]
[null,"BUDSJETTDETALJER"]
[]
[null,"MOTTAGELSE  ","BEREGNET","FAKTISK","AVVIK"]
[null,"Lokale og leie",{"v":8000,"d":"kr 8,000.00"},{"v":7800,"d":"kr 7,800.00"},{"$f":"IF(OR(TBL_Mottagelse[[#This Row],[BEREGNET]]=\"\",TBL_Mottagelse[[#This Row],[FAKTISK]]=\"\"),\"\",TBL_Mottagelse[[#This Row],[BEREGNET]]-TBL_Mottagelse[[#This Row],[FAKTISK]])","v":{"v":200,"d":"kr 200.00"}}]
[null,"Mat og tjeneste",{"v":4000,"d":"kr 4,000.00"},{"v":4200,"d":"kr 4,200.00"},{"$f":"IF(OR(TBL_Mottagelse[[#This Row],[BEREGNET]]=\"\",TBL_Mottagelse[[#This Row],[FAKTISK]]=\"\"),\"\",TBL_Mottagelse[[#This Row],[BEREGNET]]-TBL_Mottagelse[[#This Row],[FAKTISK]])","v":{"v":-200,"d":"-kr 200.00"}}]
[null,"Drikkevarer",{"v":1000,"d":"kr 1,000.00"},{"v":800,"d":"kr 800.00"},{"$f":"IF(OR(TBL_Mottagelse[[#This Row],[BEREGNET]]=\"\",TBL_Mottagelse[[#This Row],[FAKTISK]]=\"\"),\"\",TBL_Mottagelse[[#This Row],[BEREGNET]]-TBL_Mottagelse[[#This Row],[FAKTISK]])","v":{"v":200,"d":"kr 200.00"}}]
[null,"Kake",{"v":1000,"d":"kr 1,000.00"},null,{"$f":"IF(OR(TBL_Mottagelse[[#This Row],[BEREGNET]]=\"\",TBL_Mottagelse[[#This Row],[FAKTISK]]=\"\"),\"\",TBL_Mottagelse[[#This Row],[BEREGNET]]-TBL_Mottagelse[[#This Row],[FAKTISK]])","v":""}]
[null,"Diverse gebyrer",{"v":500,"d":"kr 500.00"},null,{"$f":"IF(OR(TBL_Mottagelse[[#This Row],[BEREGNET]]=\"\",TBL_Mottagelse[[#This Row],[FAKTISK]]=\"\"),\"\",TBL_Mottagelse[[#This Row],[BEREGNET]]-TBL_Mottagelse[[#This Row],[FAKTISK]])","v":""}]
[null,"BRYLLUPSFEST TOTALT",{"$f":"SUBTOTAL(109,TBL_Mottagelse[BEREGNET])","v":{"v":14500,"d":"kr 14,500.00"}},{"$f":"SUBTOTAL(109,TBL_Mottagelse[FAKTISK])","v":{"v":12800,"d":"kr 12,800.00"}},{"$f":"TBL_Mottagelse[[#Totals],[BEREGNET]]-TBL_Mottagelse[[#Totals],[FAKTISK]]","v":{"v":1700,"d":"kr 1,700.00"}}]
[]
[]
[null,"PÅKLEDNING  ","BEREGNET","FAKTISK","AVVIK"]
[null,"Smoking, dress og/eller kjoler",{"v":3000,"d":"kr 3,000.00"},{"v":2900,"d":"kr 2,900.00"},{"$f":"IF(OR(TBL_Påkledning[[#This Row],[BEREGNET]]=\"\",TBL_Påkledning[[#This Row],[FAKTISK]]=\"\"),\"\",TBL_Påkledning[[#This Row],[BEREGNET]]-TBL_Påkledning[[#This Row],[FAKTISK]])","v":{"v":100,"d":"kr 100.00"}}]
[null,"Endringer",{"v":100,"d":"kr 100.00"},null,{"$f":"IF(OR(TBL_Påkledning[[#This Row],[BEREGNET]]=\"\",TBL_Påkledning[[#This Row],[FAKTISK]]=\"\"),\"\",TBL_Påkledning[[#This Row],[BEREGNET]]-TBL_Påkledning[[#This Row],[FAKTISK]])","v":""}]
[null,"Hodepynt og slør",{"v":200,"d":"kr 200.00"},null,{"$f":"IF(OR(TBL_Påkledning[[#This Row],[BEREGNET]]=\"\",TBL_Påkledning[[#This Row],[FAKTISK]]=\"\"),\"\",TBL_Påkledning[[#This Row],[BEREGNET]]-TBL_Påkledning[[#This Row],[FAKTISK]])","v":""}]
[null,"Tilbehør",{"v":100,"d":"kr 100.00"},null,{"$f":"IF(OR(TBL_Påkledning[[#This Row],[BEREGNET]]=\"\",TBL_Påkledning[[#This Row],[FAKTISK]]=\"\"),\"\",TBL_Påkledning[[#This Row],[BEREGNET]]-TBL_Påkledning[[#This Row],[FAKTISK]])","v":""}]
[null,"Hår og sminke",{"v":500,"d":"kr 500.00"},null,{"$f":"IF(OR(TBL_Påkledning[[#This Row],[BEREGNET]]=\"\",TBL_Påkledning[[#This Row],[FAKTISK]]=\"\"),\"\",TBL_Påkledning[[#This Row],[BEREGNET]]-TBL_Påkledning[[#This Row],[FAKTISK]])","v":""}]
[null,"Diverse gebyrer",{"v":100,"d":"kr 100.00"},null,{"$f":"IF(OR(TBL_Påkledning[[#This Row],[BEREGNET]]=\"\",TBL_Påkledning[[#This Row],[FAKTISK]]=\"\"),\"\",TBL_Påkledning[[#This Row],[BEREGNET]]-TBL_Påkledning[[#This Row],[FAKTISK]])","v":""}]
[null,"ANTREKK TOTALT",{"$f":"SUBTOTAL(109,TBL_Påkledning[BEREGNET])","v":{"v":4000,"d":"kr 4,000.00"}},{"$f":"SUBTOTAL(109,TBL_Påkledning[FAKTISK])","v":{"v":2900,"d":"kr 2,900.00"}},{"$f":"TBL_Påkledning[[#Totals],[BEREGNET]]-TBL_Påkledning[[#Totals],[FAKTISK]]","v":{"v":1100,"d":"kr 1,100.00"}}]
[]
[]
[null,"BLOMSTER OG DEKORASJONER","BEREGNET","FAKTISK","AVVIK"]
[null,"Blomsteroppsatser til vielse",{"v":1000,"d":"kr 1,000.00"},null,{"$f":"IF(OR(TBL_BlomsterOgDekorasjoner[[#This Row],[BEREGNET]]=\"\",TBL_BlomsterOgDekorasjoner[[#This Row],[FAKTISK]]=\"\"),\"\",TBL_BlomsterOgDekorasjoner[[#This Row],[BEREGNET]]-TBL_BlomsterOgDekorasjoner[[#This Row],[FAKTISK]])","v":""}]
[null,"Blomsterjentes knopper og kurv",{"v":500,"d":"kr 500.00"},null,{"$f":"IF(OR(TBL_BlomsterOgDekorasjoner[[#This Row],[BEREGNET]]=\"\",TBL_BlomsterOgDekorasjoner[[#This Row],[FAKTISK]]=\"\"),\"\",TBL_BlomsterOgDekorasjoner[[#This Row],[BEREGNET]]-TBL_BlomsterOgDekorasjoner[[#This Row],[FAKTISK]])","v":""}]
[null,"Ringpute",{"v":100,"d":"kr 100.00"},null,{"$f":"IF(OR(TBL_BlomsterOgDekorasjoner[[#This Row],[BEREGNET]]=\"\",TBL_BlomsterOgDekorasjoner[[#This Row],[FAKTISK]]=\"\"),\"\",TBL_BlomsterOgDekorasjoner[[#This Row],[BEREGNET]]-TBL_BlomsterOgDekorasjoner[[#This Row],[FAKTISK]])","v":""}]
[null,"Buketter",{"v":500,"d":"kr 500.00"},null,{"$f":"IF(OR(TBL_BlomsterOgDekorasjoner[[#This Row],[BEREGNET]]=\"\",TBL_BlomsterOgDekorasjoner[[#This Row],[FAKTISK]]=\"\"),\"\",TBL_BlomsterOgDekorasjoner[[#This Row],[BEREGNET]]-TBL_BlomsterOgDekorasjoner[[#This Row],[FAKTISK]])","v":""}]
[null,"Knapphullsblomster",{"v":100,"d":"kr 100.00"},null,{"$f":"IF(OR(TBL_BlomsterOgDekorasjoner[[#This Row],[BEREGNET]]=\"\",TBL_BlomsterOgDekorasjoner[[#This Row],[FAKTISK]]=\"\"),\"\",TBL_BlomsterOgDekorasjoner[[#This Row],[BEREGNET]]-TBL_BlomsterOgDekorasjoner[[#This Row],[FAKTISK]])","v":""}]
[null,"Brystbuketter",{"v":200,"d":"kr 200.00"},null,{"$f":"IF(OR(TBL_BlomsterOgDekorasjoner[[#This Row],[BEREGNET]]=\"\",TBL_BlomsterOgDekorasjoner[[#This Row],[FAKTISK]]=\"\"),\"\",TBL_BlomsterOgDekorasjoner[[#This Row],[BEREGNET]]-TBL_BlomsterOgDekorasjoner[[#This Row],[FAKTISK]])","v":""}]
[null,"Dekorasjoner til bryllupsfest",{"v":300,"d":"kr 300.00"},null,{"$f":"IF(OR(TBL_BlomsterOgDekorasjoner[[#This Row],[BEREGNET]]=\"\",TBL_BlomsterOgDekorasjoner[[#This Row],[FAKTISK]]=\"\"),\"\",TBL_BlomsterOgDekorasjoner[[#This Row],[BEREGNET]]-TBL_BlomsterOgDekorasjoner[[#This Row],[FAKTISK]])","v":""}]
[null,"Belysning",{"v":200,"d":"kr 200.00"},null,{"$f":"IF(OR(TBL_BlomsterOgDekorasjoner[[#This Row],[BEREGNET]]=\"\",TBL_BlomsterOgDekorasjoner[[#This Row],[FAKTISK]]=\"\"),\"\",TBL_BlomsterOgDekorasjoner[[#This Row],[BEREGNET]]-TBL_BlomsterOgDekorasjoner[[#This Row],[FAKTISK]])","v":""}]
[null,"Diverse gebyrer",{"v":100,"d":"kr 100.00"},null,{"$f":"IF(OR(TBL_BlomsterOgDekorasjoner[[#This Row],[BEREGNET]]=\"\",TBL_BlomsterOgDekorasjoner[[#This Row],[FAKTISK]]=\"\"),\"\",TBL_BlomsterOgDekorasjoner[[#This Row],[BEREGNET]]-TBL_BlomsterOgDekorasjoner[[#This Row],[FAKTISK]])","v":""}]
[null,"BLOMSTER OG DEKORASJONER TOTALT",{"$f":"SUBTOTAL(109,TBL_BlomsterOgDekorasjoner[BEREGNET])","v":{"v":3000,"d":"kr 3,000.00"}},{"$f":"SUBTOTAL(109,TBL_BlomsterOgDekorasjoner[FAKTISK])","v":{"v":0,"d":"kr 0.00"}},{"$f":"TBL_BlomsterOgDekorasjoner[[#Totals],[BEREGNET]]-TBL_BlomsterOgDekorasjoner[[#Totals],[FAKTISK]]","v":{"v":3000,"d":"kr 3,000.00"}}]
[]
[]
[null,"MUSIKK","BEREGNET","FAKTISK","AVVIK"]
[null,"Musikere til vielse",{"v":700,"d":"kr 700.00"},null,{"$f":"IF(OR(TBL_Musikk[[#This Row],[BEREGNET]]=\"\",TBL_Musikk[[#This Row],[FAKTISK]]=\"\"),\"\",TBL_Musikk[[#This Row],[BEREGNET]]-TBL_Musikk[[#This Row],[FAKTISK]])","v":""}]
[null,"Musikere til etterfest",{"v":300,"d":"kr 300.00"},null,{"$f":"IF(OR(TBL_Musikk[[#This Row],[BEREGNET]]=\"\",TBL_Musikk[[#This Row],[FAKTISK]]=\"\"),\"\",TBL_Musikk[[#This Row],[BEREGNET]]-TBL_Musikk[[#This Row],[FAKTISK]])","v":""}]
[null,"Band, diskjockey eller underholdning til bryllupsfest",{"v":200,"d":"kr 200.00"},null,{"$f":"IF(OR(TBL_Musikk[[#This Row],[BEREGNET]]=\"\",TBL_Musikk[[#This Row],[FAKTISK]]=\"\"),\"\",TBL_Musikk[[#This Row],[BEREGNET]]-TBL_Musikk[[#This Row],[FAKTISK]])","v":""}]
[null,"Leie av lydsystem og dansegulv",{"v":400,"d":"kr 400.00"},null,{"$f":"IF(OR(TBL_Musikk[[#This Row],[BEREGNET]]=\"\",TBL_Musikk[[#This Row],[FAKTISK]]=\"\"),\"\",TBL_Musikk[[#This Row],[BEREGNET]]-TBL_Musikk[[#This Row],[FAKTISK]])","v":""}]
[null,"Diverse gebyrer",{"v":200,"d":"kr 200.00"},null,{"$f":"IF(OR(TBL_Musikk[[#This Row],[BEREGNET]]=\"\",TBL_Musikk[[#This Row],[FAKTISK]]=\"\"),\"\",TBL_Musikk[[#This Row],[BEREGNET]]-TBL_Musikk[[#This Row],[FAKTISK]])","v":""}]
[null,"MUSIKK TOTALT",{"$f":"SUBTOTAL(109,TBL_Musikk[BEREGNET])","v":{"v":1800,"d":"kr 1,800.00"}},{"$f":"SUBTOTAL(109,TBL_Musikk[FAKTISK])","v":{"v":0,"d":"kr 0.00"}},{"$f":"TBL_Musikk[[#Totals],[BEREGNET]]-TBL_Musikk[[#Totals],[FAKTISK]]","v":{"v":1800,"d":"kr 1,800.00"}}]
[]
[]
[null,"FOTOGRAFERING OG VIDEO","BEREGNET","FAKTISK","AVVIK"]
[null,"Fotografi",{"v":1000,"d":"kr 1,000.00"},null,{"$f":"IF(OR(TBL_FotografierOgVideo[[#This Row],[BEREGNET]]=\"\",TBL_FotografierOgVideo[[#This Row],[FAKTISK]]=\"\"),\"\",TBL_FotografierOgVideo[[#This Row],[BEREGNET]]-TBL_FotografierOgVideo[[#This Row],[FAKTISK]])","v":""}]
[null,"Video",{"v":800,"d":"kr 800.00"},null,{"$f":"IF(OR(TBL_FotografierOgVideo[[#This Row],[BEREGNET]]=\"\",TBL_FotografierOgVideo[[#This Row],[FAKTISK]]=\"\"),\"\",TBL_FotografierOgVideo[[#This Row],[BEREGNET]]-TBL_FotografierOgVideo[[#This Row],[FAKTISK]])","v":""}]
[null,"Ekstra kopier og album",{"v":500,"d":"kr 500.00"},null,{"$f":"IF(OR(TBL_FotografierOgVideo[[#This Row],[BEREGNET]]=\"\",TBL_FotografierOgVideo[[#This Row],[FAKTISK]]=\"\"),\"\",TBL_FotografierOgVideo[[#This Row],[BEREGNET]]-TBL_FotografierOgVideo[[#This Row],[FAKTISK]])","v":""}]
[null,"Diverse gebyrer",{"v":200,"d":"kr 200.00"},null,{"$f":"IF(OR(TBL_FotografierOgVideo[[#This Row],[BEREGNET]]=\"\",TBL_FotografierOgVideo[[#This Row],[FAKTISK]]=\"\"),\"\",TBL_FotografierOgVideo[[#This Row],[BEREGNET]]-TBL_FotografierOgVideo[[#This Row],[FAKTISK]])","v":""}]
[null,"BILDER OG VIDEO TOTALT",{"$f":"SUBTOTAL(109,TBL_FotografierOgVideo[BEREGNET])","v":{"v":2500,"d":"kr 2,500.00"}},{"$f":"SUBTOTAL(109,TBL_FotografierOgVideo[FAKTISK])","v":{"v":0,"d":"kr 0.00"}},{"$f":"TBL_FotografierOgVideo[[#Totals],[BEREGNET]]-TBL_FotografierOgVideo[[#Totals],[FAKTISK]]","v":{"v":2500,"d":"kr 2,500.00"}}]
[]
[]
[null,"GAVER","BEREGNET","FAKTISK","AVVIK"]
[null,"Velkomstgaver",{"v":700,"d":"kr 700.00"},null,{"$f":"IF(OR(TBL_Gaver[[#This Row],[BEREGNET]]=\"\",TBL_Gaver[[#This Row],[FAKTISK]]=\"\"),\"\",TBL_Gaver[[#This Row],[BEREGNET]]-TBL_Gaver[[#This Row],[FAKTISK]])","v":""}]
[null,"Festgaver",{"v":200,"d":"kr 200.00"},null,{"$f":"IF(OR(TBL_Gaver[[#This Row],[BEREGNET]]=\"\",TBL_Gaver[[#This Row],[FAKTISK]]=\"\"),\"\",TBL_Gaver[[#This Row],[BEREGNET]]-TBL_Gaver[[#This Row],[FAKTISK]])","v":""}]
[null,"Diverse gebyrer",{"v":200,"d":"kr 200.00"},null,{"$f":"IF(OR(TBL_Gaver[[#This Row],[BEREGNET]]=\"\",TBL_Gaver[[#This Row],[FAKTISK]]=\"\"),\"\",TBL_Gaver[[#This Row],[BEREGNET]]-TBL_Gaver[[#This Row],[FAKTISK]])","v":""}]
[null,"GAVER TIL GJESTER OG GAVER TOTALT",{"$f":"SUBTOTAL(109,TBL_Gaver[BEREGNET])","v":{"v":1100,"d":"kr 1,100.00"}},{"$f":"SUBTOTAL(109,TBL_Gaver[FAKTISK])","v":{"v":0,"d":"kr 0.00"}},{"$f":"TBL_Gaver[[#Totals],[BEREGNET]]-TBL_Gaver[[#Totals],[FAKTISK]]","v":{"v":1100,"d":"kr 1,100.00"}}]
[]
[]
[null,"SEREMONI","BEREGNET","FAKTISK","AVVIK"]
[null,"Områdegebyr",{"v":500,"d":"kr 500.00"},null,{"$f":"IF(OR(TBL_Seremoni[[#This Row],[BEREGNET]]=\"\",TBL_Seremoni[[#This Row],[FAKTISK]]=\"\"),\"\",TBL_Seremoni[[#This Row],[BEREGNET]]-TBL_Seremoni[[#This Row],[FAKTISK]])","v":""}]
[null,"Gebyr til forrettende prest eller donasjon til kirke",{"v":200,"d":"kr 200.00"},null,{"$f":"IF(OR(TBL_Seremoni[[#This Row],[BEREGNET]]=\"\",TBL_Seremoni[[#This Row],[FAKTISK]]=\"\"),\"\",TBL_Seremoni[[#This Row],[BEREGNET]]-TBL_Seremoni[[#This Row],[FAKTISK]])","v":""}]
[null,"Diverse gebyrer",{"v":100,"d":"kr 100.00"},null,{"$f":"IF(OR(TBL_Seremoni[[#This Row],[BEREGNET]]=\"\",TBL_Seremoni[[#This Row],[FAKTISK]]=\"\"),\"\",TBL_Seremoni[[#This Row],[BEREGNET]]-TBL_Seremoni[[#This Row],[FAKTISK]])","v":""}]
[null,"SEREMONI TOTALT",{"$f":"SUBTOTAL(109,TBL_Seremoni[BEREGNET])","v":{"v":800,"d":"kr 800.00"}},{"$f":"SUBTOTAL(109,TBL_Seremoni[FAKTISK])","v":{"v":0,"d":"kr 0.00"}},{"$f":"TBL_Seremoni[[#Totals],[BEREGNET]]-TBL_Seremoni[[#Totals],[FAKTISK]]","v":{"v":800,"d":"kr 800.00"}}]
[]
[]
[null,"INVITASJONER","BEREGNET","FAKTISK","AVVIK"]
[null,"Sett av datoen-kort",{"v":50,"d":"kr 50.00"},null,{"$f":"IF(OR(TBL_Invitasjoner[[#This Row],[BEREGNET]]=\"\",TBL_Invitasjoner[[#This Row],[FAKTISK]]=\"\"),\"\",TBL_Invitasjoner[[#This Row],[BEREGNET]]-TBL_Invitasjoner[[#This Row],[FAKTISK]])","v":""}]
[null,"Invitasjoner og invitasjonssvar",{"v":100,"d":"kr 100.00"},null,{"$f":"IF(OR(TBL_Invitasjoner[[#This Row],[BEREGNET]]=\"\",TBL_Invitasjoner[[#This Row],[FAKTISK]]=\"\"),\"\",TBL_Invitasjoner[[#This Row],[BEREGNET]]-TBL_Invitasjoner[[#This Row],[FAKTISK]])","v":""}]
[null,"Programmer",{"v":50,"d":"kr 50.00"},null,{"$f":"IF(OR(TBL_Invitasjoner[[#This Row],[BEREGNET]]=\"\",TBL_Invitasjoner[[#This Row],[FAKTISK]]=\"\"),\"\",TBL_Invitasjoner[[#This Row],[BEREGNET]]-TBL_Invitasjoner[[#This Row],[FAKTISK]])","v":""}]
[null,"Kort for sitteplasser og bordplassering",{"v":50,"d":"kr 50.00"},null,{"$f":"IF(OR(TBL_Invitasjoner[[#This Row],[BEREGNET]]=\"\",TBL_Invitasjoner[[#This Row],[FAKTISK]]=\"\"),\"\",TBL_Invitasjoner[[#This Row],[BEREGNET]]-TBL_Invitasjoner[[#This Row],[FAKTISK]])","v":""}]
[null,"Menykort",{"v":50,"d":"kr 50.00"},null,{"$f":"IF(OR(TBL_Invitasjoner[[#This Row],[BEREGNET]]=\"\",TBL_Invitasjoner[[#This Row],[FAKTISK]]=\"\"),\"\",TBL_Invitasjoner[[#This Row],[BEREGNET]]-TBL_Invitasjoner[[#This Row],[FAKTISK]])","v":""}]
[null,"Takkekort",{"v":50,"d":"kr 50.00"},null,{"$f":"IF(OR(TBL_Invitasjoner[[#This Row],[BEREGNET]]=\"\",TBL_Invitasjoner[[#This Row],[FAKTISK]]=\"\"),\"\",TBL_Invitasjoner[[#This Row],[BEREGNET]]-TBL_Invitasjoner[[#This Row],[FAKTISK]])","v":""}]
[null,"Porto",{"v":50,"d":"kr 50.00"},null,{"$f":"IF(OR(TBL_Invitasjoner[[#This Row],[BEREGNET]]=\"\",TBL_Invitasjoner[[#This Row],[FAKTISK]]=\"\"),\"\",TBL_Invitasjoner[[#This Row],[BEREGNET]]-TBL_Invitasjoner[[#This Row],[FAKTISK]])","v":""}]
[null,"Diverse gebyrer",{"v":100,"d":"kr 100.00"},null,{"$f":"IF(OR(TBL_Invitasjoner[[#This Row],[BEREGNET]]=\"\",TBL_Invitasjoner[[#This Row],[FAKTISK]]=\"\"),\"\",TBL_Invitasjoner[[#This Row],[BEREGNET]]-TBL_Invitasjoner[[#This Row],[FAKTISK]])","v":""}]
[null,"BREVPAPIR TOTALT",{"$f":"SUBTOTAL(109,TBL_Invitasjoner[BEREGNET])","v":{"v":500,"d":"kr 500.00"}},{"$f":"SUBTOTAL(109,TBL_Invitasjoner[FAKTISK])","v":{"v":0,"d":"kr 0.00"}},{"$f":"TBL_Invitasjoner[[#Totals],[BEREGNET]]-TBL_Invitasjoner[[#Totals],[FAKTISK]]","v":{"v":500,"d":"kr 500.00"}}]
[]
[]
[null,"GIFTERINGER","BEREGNET","FAKTISK","AVVIK"]
[null,"Gifteringer",{"v":1000,"d":"kr 1,000.00"},null,{"$f":"IF(OR(TBL_Gifteringer[[#This Row],[BEREGNET]]=\"\",TBL_Gifteringer[[#This Row],[FAKTISK]]=\"\"),\"\",TBL_Gifteringer[[#This Row],[BEREGNET]]-TBL_Gifteringer[[#This Row],[FAKTISK]])","v":""}]
[null,"Ringtilbehør",{"v":100,"d":"kr 100.00"},null,{"$f":"IF(OR(TBL_Gifteringer[[#This Row],[BEREGNET]]=\"\",TBL_Gifteringer[[#This Row],[FAKTISK]]=\"\"),\"\",TBL_Gifteringer[[#This Row],[BEREGNET]]-TBL_Gifteringer[[#This Row],[FAKTISK]])","v":""}]
[null,"GIFTERINGER TOTALT",{"$f":"SUBTOTAL(109,TBL_Gifteringer[BEREGNET])","v":{"v":1100,"d":"kr 1,100.00"}},{"$f":"SUBTOTAL(109,TBL_Gifteringer[FAKTISK])","v":{"v":0,"d":"kr 0.00"}},{"$f":"TBL_Gifteringer[[#Totals],[BEREGNET]]-TBL_Gifteringer[[#Totals],[FAKTISK]]","v":{"v":1100,"d":"kr 1,100.00"}}]
[]
[]
[null,"TRANSPORT  ","BEREGNET","FAKTISK","AVVIK"]
[null,"Leie av hovedbil",{"v":100,"d":"kr 100.00"},null,{"$f":"IF(OR(TBL_Transport[[#This Row],[BEREGNET]]=\"\",TBL_Transport[[#This Row],[FAKTISK]]=\"\"),\"\",TBL_Transport[[#This Row],[BEREGNET]]-TBL_Transport[[#This Row],[FAKTISK]])","v":""}]
[null,"Leie av gjestebiler",{"v":100,"d":"kr 100.00"},null,{"$f":"IF(OR(TBL_Transport[[#This Row],[BEREGNET]]=\"\",TBL_Transport[[#This Row],[FAKTISK]]=\"\"),\"\",TBL_Transport[[#This Row],[BEREGNET]]-TBL_Transport[[#This Row],[FAKTISK]])","v":""}]
[null,"Transport av gjester utenbysfra",{"v":100,"d":"kr 100.00"},null,{"$f":"IF(OR(TBL_Transport[[#This Row],[BEREGNET]]=\"\",TBL_Transport[[#This Row],[FAKTISK]]=\"\"),\"\",TBL_Transport[[#This Row],[BEREGNET]]-TBL_Transport[[#This Row],[FAKTISK]])","v":""}]
[null,"Parkeringstjeneste",{"v":50,"d":"kr 50.00"},null,{"$f":"IF(OR(TBL_Transport[[#This Row],[BEREGNET]]=\"\",TBL_Transport[[#This Row],[FAKTISK]]=\"\"),\"\",TBL_Transport[[#This Row],[BEREGNET]]-TBL_Transport[[#This Row],[FAKTISK]])","v":""}]
[null,"Diverse gebyrer",{"v":100,"d":"kr 100.00"},null,{"$f":"IF(OR(TBL_Transport[[#This Row],[BEREGNET]]=\"\",TBL_Transport[[#This Row],[FAKTISK]]=\"\"),\"\",TBL_Transport[[#This Row],[BEREGNET]]-TBL_Transport[[#This Row],[FAKTISK]])","v":""}]
[null,"TRANSPORT TOTALT",{"$f":"SUBTOTAL(109,TBL_Transport[BEREGNET])","v":{"v":450,"d":"kr 450.00"}},{"$f":"SUBTOTAL(109,TBL_Transport[FAKTISK])","v":{"v":0,"d":"kr 0.00"}},{"$f":"TBL_Transport[[#Totals],[BEREGNET]]-TBL_Transport[[#Totals],[FAKTISK]]","v":{"v":450,"d":"kr 450.00"}}]